bitfinex-derivatives/quotes_ETHF0:USTF0_20250507
["timestamp","ask_amount","ask_price","bid_price","bid_amount"]
[1746636050116,2.7423,1805.6,1805.5,3.33303788]
[1746636051021,1.1076,1805.6,1805.5,7.91598788]
[1746636051929,2.73948,1805.7,1805.6,1.1076]
[1746636052117,2.73948,1805.7,1805.6,2.8823]
[1746636052624,1.6319,1805.7,1805.6,2.8823]
[1746636052817,3.2078,1806.2,1805.6,1.7747]
[1746636053023,2.73928,1806.0,1805.9,1.10742]
[1746636054822,2.73928,1806.0,1805.9,2.75532]
[1746636055127,2.73928,1806.0,1805.9,1.6479]
[1746636055525,2.73928,1806.0,1805.9,2.75532]
[1746636056024,0.8688,1806.1,1806.0,1.10736]
[1746636056326,1.9761,1806.1,1806.0,2.75526]
[1746636056627,1.9761,1806.1,1806.0,5.96306]
[1746636056823,3.6495,1806.1,1806.0,2.75526]
[1746636057425,3.6495,1806.1,1806.0,1.6479]
[1746636057630,1.10741,1806.0,1805.9,1.10739]
[1746636057826,2.78081,1806.0,1805.9,1.10742]
[1746636059635,1.6734,1806.0,1805.9,1.10742]
[1746636059825,1.6734,1806.0,1805.9,2.72782]
[1746636060331,1.0201,1806.0,1805.9,2.72782]
[1746636060634,1.93364,1806.2,1806.1,1.1073]
[1746636060834,0.8264,1806.2,1806.1,1.1073]
[1746636061131,4.31503,1806.3,1806.2,1.10724]
[1746636061330,1.10728,1806.2,1806.1,1.10725]
[1746636061531,1.10728,1806.2,1806.1,2.72765]
[1746636062134,1.10724,1806.3,1806.2,1.1072]
[1746636062533,1.99584,1806.3,1806.2,1.1072]
[1746636062735,0.8886,1806.3,1806.2,1.1072]
[1746636063033,1.10724,1806.3,1806.2,1.10721]
[1746636063234,1.10724,1806.2,1806.1,1.10729]
[1746636063424,4.31504,1806.2,1806.1,1.10729]
[1746636063628,6.07044,1806.2,1806.1,1.10729]
[1746636063825,6.07044,1806.2,1806.1,28.40729]
[1746636064029,2.86264,1806.2,1806.1,28.40729]
[1746636064237,1.7554,1806.2,1806.1,28.40729]
[1746636064530,0.8886,1806.3,1806.2,1.10724]
[1746636064737,1.96534,1806.4,1806.3,1.10718]
[1746636064933,1.10718,1806.3,1806.2,7.39678]
[1746636065432,1.10724,1806.2,1806.1,32.98825]
[1746636066236,1.10723,1806.3,1806.2,1.10719]
[1746636066433,5.17314,1806.4,1806.3,1.10718]
[1746636067337,4.31494,1806.4,1806.3,1.10718]
[1746636067836,4.31491,1806.4,1806.3,1.10718]
[1746636068339,4.31491,1806.4,1806.3,2.85068]
[1746636068538,3.2078,1806.4,1806.3,2.85068]
[1746636068739,4.31491,1806.4,1806.3,2.85068]
[1746636069341,1.10718,1806.3,1806.2,1.1072]
[1746636069636,2.79858,1806.3,1806.2,1.1072]
[1746636072639,3.2078,1806.4,1806.1,36.33121]
[1746636072837,1.10724,1806.2,1806.1,28.40725]
[1746636073241,1.10724,1806.2,1806.1,1.10725]
[1746636073443,1.10723,1806.3,1806.2,1.10718]
[1746636073947,1.1073,1806.2,1806.1,1.10725]
[1746636074242,4.3151,1806.2,1806.1,1.10725]
[1746636074443,1.1073,1806.1,1806.0,28.40733]
[1746636074648,1.10742,1805.9,1805.8,4.31524]
[1746636075040,1.1074,1806.0,1805.9,1.10738]
[1746636075240,1.6642,1806.1,1806.0,1.10736]
[1746636075441,3.2078,1806.2,1806.1,1.1073]
[1746636076148,3.2078,1806.2,1806.1,2.742]
[1746636078347,1.1073,1806.1,1806.0,1.10732]
[1746636078648,4.31509,1806.2,1806.1,1.1073]
[1746636079640,1.1073,1806.1,1806.0,2.76511]
[1746636079847,1.1073,1806.1,1806.0,1.10731]
[1746636080538,3.2078,1806.2,1805.9,5.67439]
[1746636080539,1.10736,1806.0,1805.9,5.67439]
[1746636080741,2.74566,1806.0,1805.9,5.67439]
[1746636081145,1.6383,1806.0,1805.9,5.67439]
[1746636081342,1.6383,1806.0,1805.9,7.45139]
[1746636081754,2.74566,1806.0,1805.9,5.67439]
[1746636081949,4.38846,1806.0,1805.9,5.67439]
[1746636082544,4.38846,1806.0,1805.9,7.45139]
[1746636082748,4.38846,1806.0,1805.9,4.567]
[1746636082950,3.2811,1806.0,1805.9,5.67442]
[1746636083149,3.2811,1806.0,1805.9,2.88442]
[1746636083349,1.10746,1805.9,1805.8,1.10743]
[1746636083551,2.75026,1805.9,1805.8,1.10743]
[1746636083747,1.10748,1805.8,1805.7,1.10749]
[1746636083954,1.10754,1805.7,1805.6,6.09236]
[1746636084150,1.10754,1805.7,1805.6,2.88456]
[1746636084652,1.10754,1805.7,1805.6,1.10756]
[1746636085052,2.72174,1805.7,1805.6,1.10756]
[1746636085644,3.58876,1805.7,1805.6,1.1076]
[1746636085849,1.33120001,1805.7,1805.6,2.7615]
[1746636087045,3.2078,1805.8,1805.7,1.10754]
[1746636087240,4.31528,1805.8,1805.7,2.87094]
[1746636088051,4.31528,1805.8,1805.7,3.74554]
[1746636089245,3.72478,1805.9,1805.8,1.10748]
[1746636089548,5.1308,1806.0,1805.9,1.10742]
[1746636089847,6.892,1806.0,1805.9,1.10742]
[1746636091249,5.7846,1806.0,1805.8,1.7634]
[1746636091549,5.7846,1806.0,1805.6,8.17291]
[1746636091550,1.10754,1805.7,1805.6,5.67457]
[1746636091753,1.10754,1805.7,1805.6,1.10757]
[1746636092141,6.89021,1805.8,1805.7,1.10754]
[1746636092344,6.89018,1805.8,1805.7,1.10754]
[1746636092553,6.07648,1805.8,1805.7,1.10754]
[1746636092750,6.07648,1805.8,1805.7,1.91914]
[1746636094752,1.10742,1805.9,1805.8,1.10742]
[1746636094953,1.10742,1805.9,1805.8,2.77292]
[1746636095552,2.75372,1805.9,1805.8,2.77292]
[1746636096353,1.6463,1805.9,1805.8,2.77292]
[1746636096657,2.75372,1805.9,1805.8,2.77292]
[1746636096858,1.10728,1806.2,1806.0,1.10736]
[1746636097055,1.10728,1806.2,1806.1,2.75364]
[1746636097660,2.87712,1806.3,1806.2,1.10724]
[1746636097857,12.35852151,1806.4,1806.3,1.10718]
[1746636098069,14.12842151,1806.4,1806.3,1.10718]
[1746636098256,17.72842151,1806.4,1806.3,1.10718]
[1746636098750,17.72842151,1806.4,1806.3,1.95808]
[1746636099154,14.12842151,1806.4,1806.3,1.95808]
[1746636100958,6.92205,1806.4,1806.3,1.95808]
[1746636102359,6.92205,1806.4,1806.2,2.75359]
[1746636102360,1.10718,1806.3,1806.2,2.75359]
[1746636102565,1.10724,1806.2,1806.1,1.10725]
[1746636102754,4.31504,1806.2,1806.1,1.10725]
[1746636103259,1.10724,1806.2,1806.1,1.10725]
[1746636103561,1.10722,1806.3,1806.2,1.10724]
[1746636104052,1.10724,1806.2,1806.1,2.77455]
[1746636104246,4.31504,1806.2,1806.1,2.77455]
[1746636106059,3.2078,1806.2,1806.1,2.77455]
[1746636107256,4.31504,1806.2,1806.1,2.77455]
[1746636107458,6.06174,1806.2,1806.1,2.77455]
[1746636107659,4.9545,1806.2,1806.1,2.77455]
[1746636108159,3.2078,1806.2,1806.1,2.77455]
[1746636108963,4.31504,1806.2,1806.1,2.77455]
[1746636109262,3.2078,1806.2,1806.1,2.77455]
[1746636110361,4.9748,1806.2,1806.1,2.77455]
[1746636110665,6.08204,1806.2,1806.1,2.77455]
[1746636110957,4.9748,1806.2,1806.1,2.77455]
[1746636112650,3.2078,1806.2,1806.1,2.77455]
[1746636113949,1.1073,1806.1,1806.0,1.1073]
[1746636114163,2.635,1806.1,1806.0,1.1073]
[1746636114664,2.635,1806.1,1806.0,2.7703]
[1746636114963,3.7423,1806.1,1806.0,2.7703]
[1746636116168,2.635,1806.1,1806.0,2.7703]
[1746636116351,3.7423,1806.1,1806.0,2.7703]
[1746636117067,2.635,1806.1,1806.0,2.7703]
[1746636117662,1.7659,1806.1,1806.0,2.7703]
[1746636119663,3.2078,1806.2,1806.1,1.1073]
[1746636119861,3.2078,1806.2,1806.1,2.8763]
[1746636120455,3.2078,1806.2,1806.1,3.7623]
[1746636120661,4.91,1806.2,1806.1,3.7623]
[1746636121864,7.80723469,1806.5,1806.4,1.10711]
[1746636122065,10.61648469,1806.5,1806.4,1.10711]
[1746636122863,7.80723469,1806.5,1806.4,1.10711]
[1746636123067,4.59943469,1806.5,1806.4,1.10711]
[1746636123268,4.59943469,1806.5,1806.4,2.81251]
[1746636123570,6.00234,1806.7,1806.4,1.7054]
[1746636123769,6.00234,1806.7,1806.6,1.10699]
[1746636123973,4.8954,1806.7,1806.6,1.10699]
[1746636124169,8.4954,1806.7,1806.6,1.10699]
[1746636124473,3.6,1806.7,1806.6,1.53860652]
[1746636124662,3.6,1806.7,1806.6,1.96291145]
[1746636125170,10.00084151,1806.8,1806.7,1.10693]
[1746636125365,8.89397151,1806.8,1806.7,2.80783]
[1746636126158,12.49397151,1806.8,1806.7,2.80783]
[1746636126362,13.60084151,1806.8,1806.7,2.80783]
[1746636126564,12.49397151,1806.8,1806.7,2.80783]
[1746636126872,13.60084151,1806.8,1806.7,1.10693]
[1746636127466,6.39447,1806.8,1806.7,1.10693]
[1746636127772,3.6,1806.8,1806.7,1.10693]
[1746636128074,3.0006,1806.8,1806.7,3.76723]
[1746636128273,12.08027151,1806.9,1806.8,1.10687]
[1746636128574,10.41417151,1806.9,1806.8,3.77137]
[1746636128875,7.20637151,1806.9,1806.8,3.77137]
[1746636129073,7.20637151,1806.9,1806.8,3.76650953]
[1746636129367,2.7691626,1806.9,1806.8,6.97430953]
[1746636129569,1.66804631,1806.9,1806.8,11.50330953]
[1746636129771,0.56693003,1806.9,1806.8,16.50330953]
[1746636130073,6.03232646,1807.1,1807.0,1.10675]
[1746636130269,3.26393047,1807.1,1807.0,4.31455]
[1746636130478,20.25637704,1807.3,1807.2,1.10662]
[1746636131171,25.47567704,1807.3,1807.2,2.81532]
[1746636131371,23.85637704,1807.3,1807.2,2.81532]
[1746636132380,3.6,1807.3,1807.2,2.81532]
[1746636132677,0.83160401,1807.3,1807.2,6.02312]
[1746636132871,10.78695897,1807.9,1807.6,1.10638]
[1746636133072,12.47415897,1807.9,1807.8,1.10626]
[1746636133271,10.78695897,1807.9,1807.8,1.10626]
[1746636133466,10.47292598,1807.9,1807.8,1.10626]
[1746636133675,7.70452999,1807.9,1807.8,2.75736]
[1746636135174,7.70452999,1807.9,1807.8,1.10626]
[1746636135386,10.20712999,1807.9,1807.8,1.10626]
[1746636135675,11.31332999,1807.9,1807.8,1.10626]
[1746636136284,15.74132999,1807.9,1807.8,1.10626]
[1746636137168,14.63512999,1807.9,1807.8,1.10626]
[1746636137779,6.9306,1807.9,1807.8,1.10626]
[1746636138481,6.9306,1807.9,1807.8,2.82826]
[1746636138973,6.9306,1807.9,1807.8,1.10626]
[1746636141981,8.0368,1807.9,1807.8,1.10626]
[1746636142183,6.9306,1807.9,1807.8,1.10626]
[1746636142380,8.0368,1807.9,1807.8,1.10626]
[1746636142581,6.9306,1807.9,1807.8,1.10626]
[1746636143477,8.0368,1807.9,1807.8,1.10626]
[1746636143977,6.9306,1807.9,1807.8,1.10626]
[1746636144883,8.0368,1807.9,1807.8,1.10626]
[1746636145584,1.1063,1807.8,1807.7,1.10627]
[1746636145885,2.87286,1807.8,1807.7,1.10627]
[1746636146286,6.47286,1807.8,1807.7,1.10627]
[1746636147989,2.76581,1807.7,1807.2,2.76643]
[1746636148278,1.10655,1807.4,1807.3,1.10652]
[1746636148887,1.10648,1807.5,1807.4,1.10646]
[1746636149780,1.1065,1807.4,1807.3,2.82583]
[1746636149984,1.10656,1807.3,1807.2,4.31437]
[1746636150181,6.1527,1807.3,1807.2,4.31442]
[1746636150383,7.25926,1807.3,1807.2,5.94552]
[1746636151888,7.25926,1807.3,1807.2,4.31442]
[1746636152992,7.25926,1807.3,1807.2,5.94552]
[1746636153691,4.70656,1807.3,1807.2,5.94552]
[1746636154190,4.70656,1807.3,1807.2,2.73772]
[1746636154394,3.6,1807.3,1807.2,2.73772]
[1746636154596,4.70656,1807.3,1807.2,2.73772]
[1746636154792,6.42396,1807.3,1807.2,2.73772]
[1746636155482,6.42396,1807.3,1807.2,1.10662]
[1746636156797,5.3174,1807.3,1807.2,1.10662]
[1746636156997,6.42396,1807.3,1807.2,2.71182]
[1746636157898,3.6,1807.3,1807.2,5.91962]
[1746636159393,1.10652,1807.4,1807.3,1.10656]
[1746636159594,1.10652,1807.4,1807.3,2.87636]
[1746636160097,4.70652,1807.4,1807.3,2.87636]
[1746636160395,3.6,1807.4,1807.3,2.87636]
[1746636161198,4.7065,1807.4,1807.3,2.87636]
[1746636162297,6.4484,1807.4,1807.3,2.87636]
[1746636164194,5.3419,1807.4,1807.3,2.87636]
[1746636165000,6.4484,1807.4,1807.3,2.87636]
[1746636165300,2.8484,1807.4,1807.3,2.87636]
[1746636165502,1.7419,1807.4,1807.3,2.87636]
[1746636165902,2.8484,1807.4,1807.3,2.87636]
[1746636166398,1.10656,1807.3,1807.2,4.31436]
[1746636166600,2.80526,1807.3,1807.2,4.31436]
[1746636166799,3.62606,1807.3,1807.2,4.31436]
[1746636167094,3.62606,1807.3,1807.1,3.2895]
[1746636167095,1.10669,1807.1,1807.0,6.12696]
[1746636167295,1.10669,1807.1,1807.0,5.02025]
[1746636167603,6.10669,1807.1,1807.0,5.02025]
[1746636167795,7.80539,1807.1,1807.0,5.02025]
[1746636168305,11.40539,1807.1,1807.0,5.02025]
[1746636168512,15.92339,1807.1,1807.0,5.02025]
[1746636169009,1.10693,1806.7,1806.6,1.54082295]
[1746636169210,4.70693,1806.7,1806.6,1.54082295]
[1746636170105,2.83993,1806.7,1806.6,1.54082295]
[1746636170412,1.10699,1806.6,1806.5,4.14434447]
[1746636170714,2.83999,1806.6,1806.5,4.57698256]
[1746636171506,2.83999,1806.6,1806.5,1.7414]
[1746636171812,2.83999,1806.6,1806.5,2.84845]
[1746636172007,2.83999,1806.6,1806.5,1.7414]
[1746636172406,2.83999,1806.6,1806.5,2.84845]
[1746636172911,2.83999,1806.6,1806.5,1.7414]
[1746636173111,1.10711,1806.4,1806.3,1.91034]
[1746636173316,1.10718,1806.3,1806.2,3.2078]
[1746636173612,1.93668,1806.3,1806.2,4.31504]
[1746636174015,1.93668,1806.3,1806.2,6.05964]
[1746636175707,4.0373,1806.3,1806.0,0.8853]
[1746636176020,1.10736,1806.0,1805.9,1.10738]
[1746636176718,1.10736,1806.0,1805.9,2.87278]
[1746636177111,1.10736,1806.0,1805.9,3.31455942]
[1746636178717,2.82184,1806.1,1806.0,1.10736]
[1746636179117,2.82184,1806.1,1806.0,2.72596]
[1746636180822,4.519,1806.2,1806.1,1.1073]
[1746636181026,4.519,1806.2,1806.1,2.7324]
[1746636181520,3.87428,1806.3,1806.2,1.10724]
[1746636181823,3.87428,1806.3,1806.2,4.41844]
[1746636182026,3.59828,1806.3,1806.2,4.41844]
[1746636182917,1.10718,1806.3,1806.2,4.41844]
[1746636183126,1.9375,1806.4,1806.3,1.10718]
[1746636183321,3.2078,1806.5,1806.4,1.10711]
[1746636183518,4.038,1806.7,1806.6,1.10699]
[1746636183823,0.8302,1806.7,1806.6,1.10699]
[1746636184223,1.93713,1806.7,1806.6,4.41749]
[1746636184724,0.8302,1806.7,1806.6,4.41749]
[1746636185224,1.93713,1806.7,1806.6,4.41749]
[1746636185633,1.93713,1806.7,1806.6,3.3105]
[1746636185819,3.63453,1806.7,1806.6,4.41749]
[1746636186128,1.10693,1806.7,1806.6,4.41749]
[1746636187324,2.79323,1806.7,1806.6,3.3105]
[1746636187528,1.10699,1806.6,1806.5,1.10702]
[1746636187828,2.79329,1806.6,1806.5,1.10702]
[1746636188124,1.10705,1806.5,1806.4,3.70478]
[1746636188426,2.79335,1806.6,1806.5,1.10705]
[1746636188728,1.6863,1806.6,1806.5,2.82355]
[1746636189229,1.10697,1806.7,1806.6,1.10699]
[1746636189427,2.79327,1806.7,1806.6,1.10699]
[1746636189931,2.7672,1806.8,1806.7,1.10693]
[1746636190224,0.8301,1806.8,1806.7,1.10693]
[1746636190927,0.83019,1806.9,1806.8,1.10687]
[1746636191119,3.2078,1807.1,1807.0,1.10675]
[1746636191321,1.10664,1807.3,1807.2,1.1066]
[1746636191629,1.10667,1807.2,1807.1,2.83039]
[1746636191824,7.77927,1807.4,1807.1,1.7237]
[1746636192128,11.44975,1807.4,1807.3,1.10656]
[1746636192329,8.24195,1807.4,1807.3,1.55412499]
[1746636192527,6.1601,1807.4,1807.3,1.55412499]
[1746636192723,6.1601,1807.4,1807.3,3.27782499]
[1746636193323,4.4299,1807.4,1807.3,3.27782499]
[1746636193821,5.5364,1807.4,1807.3,3.27782499]
[1746636194025,1.10656,1807.3,1807.2,0.8828]
[1746636194230,1.10669,1807.1,1807.0,3.3259344]
[1746636194527,1.10669,1807.1,1807.0,2.88482]
[1746636194729,1.10669,1807.1,1807.0,30.18482]
[1746636195327,4.70669,1807.1,1807.0,2.88482]
[1746636195526,3.6,1807.1,1807.0,2.88482]
[1746636195928,4.70669,1807.1,1807.0,2.88482]
[1746636196132,5.3512,1807.1,1807.0,2.88482]
[1746636196321,3.6,1807.1,1807.0,2.88482]
[1746636197226,2.85781,1807.3,1807.2,1.10662]
[1746636198228,6.45781,1807.3,1807.2,1.10662]
[1746636199444,1.10662,1807.2,1807.1,2.88806]
[1746636199733,1.10675,1807.1,1807.0,1.10669]
[1746636200132,6.40375,1807.1,1807.0,1.10669]
[1746636200431,5.297,1807.1,1806.7,2.7673]
[1746636200630,1.10693,1806.8,1806.7,1.10688]
[1746636201434,2.80393,1806.8,1806.7,1.10688]
[1746636201730,1.697,1806.8,1806.7,1.10688]
[1746636201931,2.80387,1806.8,1806.7,1.10688]
[1746636202134,1.10687,1806.8,1806.7,2.86668]
[1746636202329,1.10676,1807.1,1807.0,1.10671]
[1746636202529,2.77736,1807.1,1807.0,1.10671]
[1746636202728,1.6706,1807.1,1807.0,1.10671]
[1746636202929,2.77729,1807.1,1807.0,2.72071]
[1746636203127,6.37729,1807.1,1807.0,3.57121]
[1746636204138,5.2706,1807.1,1807.0,3.57121]
[1746636204436,6.37729,1807.1,1807.0,3.57121]
[1746636205039,5.2706,1807.1,1807.0,3.57121]
[1746636206743,3.6,1807.1,1807.0,3.57121]
[1746636207236,4.40535,1807.2,1807.1,1.10669]
[1746636207435,4.40535,1807.2,1807.1,2.87689]
[1746636207841,3.2987,1807.2,1807.1,2.87689]
[1746636208041,4.40532,1807.2,1807.1,2.87689]
[1746636208235,8.00532,1807.2,1807.1,2.87689]
[1746636209039,6.8987,1807.2,1807.1,2.87689]
[1746636209235,2.4861,1807.2,1807.1,2.87689]
[1746636209436,0.83,1807.2,1807.1,2.87689]
[1746636212939,0.14531,1807.5,1807.4,1.1065]
[1746636213247,9.5962729,1808.0,1807.4,7.7228]
[1746636213544,2.78192,1807.7,1807.6,1.10632]
[1746636213943,1.6756,1807.7,1807.6,1.10632]
[1746636214341,1.6756,1807.7,1807.5,4.47911]
[1746636214545,1.10638,1807.6,1807.5,1.10641]
[1746636214737,2.79238,1807.6,1807.5,1.10641]
[1746636215238,6.39238,1807.6,1807.5,1.10641]
[1746636216846,1.10649,1807.5,1807.4,1.10645]
[1746636217052,2.72129,1807.5,1807.4,1.10645]
[1746636217240,1.1065,1807.4,1807.3,1.10652]
[1746636217439,2.7213,1807.4,1807.3,1.10652]
[1746636218156,6.3213,1807.4,1807.3,1.10652]
[1746636219645,1.10656,1807.3,1807.2,6.84178]
[1746636219846,3.61396,1807.3,1807.2,6.84178]
[1746636220148,7.21396,1807.3,1807.2,6.84178]
[1746636220642,7.21396,1807.3,1807.2,3.2078]
[1746636221246,7.21396,1807.3,1807.2,4.31442]
[1746636221646,7.21396,1807.3,1807.2,3.2078]
[1746636222353,7.21396,1807.3,1807.2,4.31442]
[1746636223355,7.21396,1807.3,1807.2,1.10662]
[1746636224155,1.10662,1807.2,1807.1,2.73494]
[1746636224361,3.57712,1807.2,1807.1,2.73494]
[1746636225260,7.17712,1807.2,1807.1,2.73494]
[1746636227565,4.70662,1807.2,1807.1,2.73494]
[1746636227766,4.70662,1807.2,1807.1,1.10664]
[1746636228170,6.34592,1807.2,1807.1,1.10664]
[1746636229767,1.10669,1807.1,1807.0,5.91939]
[1746636229965,2.85089,1807.1,1807.0,5.91939]
[1746636230166,6.45089,1807.1,1807.0,5.91939]
[1746636231168,2.85089,1807.1,1807.0,5.91939]
[1746636232071,2.85089,1807.1,1807.0,4.8127]
[1746636232365,2.85089,1807.1,1807.0,5.91945]
[1746636234167,6.45089,1807.1,1807.0,5.91945]
[1746636235069,6.45089,1807.1,1807.0,2.71165]
[1746636237265,6.45089,1807.1,1807.0,1.6049]
[1746636238371,6.45089,1807.1,1807.0,2.71165]
[1746636239169,2.85089,1807.1,1807.0,2.71165]
[1746636240372,1.10669,1807.1,1807.0,2.71165]
[1746636240574,9.03457175,1807.8,1807.0,9.8127]
[1746636240871,11.9476661,1808.0,1807.9,1.1062]
[1746636241165,11.9476661,1808.0,1807.7,3.2078]
[1746636241166,14.4414861,1808.0,1807.8,28.4062]
[1746636241368,1.10626,1807.8,1807.7,3.2078]
[1746636241860,1.10638,1807.6,1807.5,3.63999]
[1746636242266,4.70638,1807.6,1807.5,3.63999]
[1746636243169,4.70638,1807.6,1807.5,2.5336]
[1746636243471,3.6,1807.6,1807.5,3.64004]
[1746636243673,3.6,1807.6,1807.5,4.46194]
[1746636243873,0.18333,1808.1,1807.8,1.10626]
[1746636244069,5.97251,1808.5,1808.2,1.10599]
[1746636244373,1.106,1808.3,1808.2,1.10599]
[1746636245074,2.8473,1808.3,1808.2,1.10599]
[1746636245376,2.76504,1808.2,1807.9,29.23725]
[1746636245676,1.10612,1808.1,1808.0,1.1061]
[1746636245867,2.84742,1808.1,1808.0,1.1061]
[1746636246269,1.10613,1808.0,1807.9,3.56905]
[1746636246471,2.84743,1808.0,1807.9,3.56905]
[1746636246872,2.84743,1808.0,1807.8,1.10623]
[1746636246873,1.1062,1807.9,1807.8,1.10623]
[1746636247068,5.3413,1807.9,1807.8,2.73803]
[1746636247273,3.6,1807.9,1807.8,2.73803]
[1746636248274,1.10612,1808.1,1808.0,1.10613]
[1746636248575,1.6326,1808.2,1808.1,1.10607]
[1746636248775,1.6326,1808.2,1808.0,1.10609]
[1746636249075,1.10611,1808.1,1808.0,1.10609]
[1746636249468,6.33866,1808.2,1808.1,1.10607]
[1746636249770,3.6,1808.2,1808.1,1.10607]
[1746636250171,4.31381,1808.3,1808.2,1.10601]
[1746636250376,1.10601,1808.2,1808.1,3.70653]
[1746636251175,1.10607,1808.1,1808.0,1.1061]
[1746636251476,1.1063,1807.8,1807.7,1.10627]
[1746636251674,0.8903,1808.0,1807.9,1.1062]
[1746636251879,1.10618,1808.0,1807.9,1.1062]
[1746636252270,1.1062,1807.9,1807.8,2.87731]
[1746636252776,2.81398,1808.0,1807.9,1.1062]
[1746636252976,2.81398,1808.0,1807.9,2.8773]
[1746636253172,1.10618,1808.0,1807.9,1.7711]
[1746636253378,1.1062,1807.9,1807.8,1.10621]
[1746636253678,1.1062,1807.9,1807.8,2.87731]
[1746636254471,1.10626,1807.8,1807.7,3.2078]
[1746636254671,3.65676,1807.8,1807.7,3.2078]
[1746636254871,3.65676,1807.8,1807.7,5.95717]
[1746636255880,1.10626,1807.9,1807.8,1.10622]
[1746636256075,1.10626,1807.9,1807.8,2.74932]
[1746636256076,4.70626,1807.9,1807.8,2.74932]
[1746636256383,4.70626,1807.9,1807.8,1.10622]
[1746636256682,6.40356,1807.9,1807.8,1.10622]
[1746636257075,6.40356,1807.9,1807.8,2.74932]
[1746636257275,2.80356,1807.9,1807.8,2.74932]
[1746636257577,2.8035,1807.9,1807.8,2.74932]
[1746636258373,1.1062,1807.9,1807.8,2.74932]
[1746636258575,1.1062,1807.9,1807.8,3.56672]
[1746636258881,1.1062,1807.9,1807.8,2.74936]
[1746636259383,2.7516,1807.9,1807.8,1.6431]
[1746636259685,1.10626,1807.8,1807.7,4.31407]
[1746636259885,2.75166,1807.8,1807.7,6.03747]
[1746636261687,1.10624,1807.9,1807.8,1.1062]
[1746636261984,1.10624,1807.9,1807.8,2.7626]
[1746636262184,4.70624,1807.9,1807.8,2.7626]
[1746636262985,6.38964,1807.9,1807.8,2.7626]
[1746636264490,1.10638,1807.6,1807.5,28.4064]
[1746636264788,1.10638,1807.6,1807.5,1.1064]
[1746636265178,1.10638,1807.6,1807.5,2.7438]
[1746636265785,2.79918,1807.6,1807.5,2.7438]
[1746636266176,2.79918,1807.6,1807.5,1.6374]
[1746636266383,2.79918,1807.6,1807.5,2.74384]
[1746636267182,6.39918,1807.6,1807.5,2.74384]
[1746636267385,1.10656,1807.3,1807.2,4.31439]
[1746636267586,1.10656,1807.3,1807.2,6.07839]
[1746636268180,2.84336,1807.3,1807.2,6.07839]
[1746636268883,1.10656,1807.3,1807.2,6.07839]
[1746636269078,2.84923,1807.4,1807.3,1.10656]
[1746636269279,1.96403,1807.4,1807.3,2.81646]
[1746636269489,1.10653,1807.4,1807.3,2.81646]
[1746636270087,4.70653,1807.4,1807.3,2.81646]
[1746636270289,3.6,1807.4,1807.3,2.81646]
[1746636270887,4.7065,1807.4,1807.3,2.81646]
[1746636271290,3.6,1807.4,1807.3,2.81646]
[1746636271485,0.83275314,1807.4,1807.3,2.81646]
[1746636272083,0.37775314,1807.4,1807.3,2.81646]
[1746636272277,4.0524,1807.8,1807.5,1.10644]
[1746636272487,2.5065,1808.0,1807.8,1.10621]
[1746636272690,2.76603,1808.0,1807.9,1.7166]
[1746636273081,2.76603,1808.0,1807.9,2.8228]
[1746636273385,6.36603,1808.0,1807.9,2.8228]
[1746636275290,3.6,1808.0,1807.9,2.8228]
[1746636275589,4.70613,1808.0,1807.9,2.8228]
[1746636275790,3.6,1808.0,1807.9,2.8228]
[1746636276286,3.52846,1808.2,1807.9,1.7166]
[1746636276487,3.52846,1808.2,1808.1,1.10607]
[1746636276797,3.52844,1808.2,1808.1,1.10607]
[1746636277185,4.70601,1808.3,1808.2,1.10601]
[1746636277494,3.6,1808.3,1808.2,1.10601]
[1746636277786,4.70595,1808.3,1808.2,1.10601]
[1746636277994,4.70595,1808.3,1808.2,4.12824901]
[1746636278188,1.10595,1808.3,1808.2,4.12824901]
[1746636278990,3.52833,1808.4,1808.3,1.10595]
[1746636279192,3.52833,1808.4,1808.3,2.76265]
[1746636279486,1.94246,1808.5,1808.4,1.10589]
[1746636279689,1.94246,1808.5,1808.4,2.76259]
[1746636281695,1.94246,1808.5,1808.4,1.6567]
[1746636281993,1.94246,1808.5,1808.4,2.76259]
[1746636282198,4.70586,1808.5,1808.4,2.76259]
[1746636283292,1.10586,1808.5,1808.4,2.76259]
[1746636285089,2.79292,1808.6,1808.5,1.10583]
[1746636285295,2.79292,1808.6,1808.5,2.80523]
[1746636286190,2.79292,1808.6,1808.5,1.6994]
[1746636287190,6.39292,1808.6,1808.5,1.6994]
[1746636288696,1.10572,1808.5,1808.4,1.10576]
[1746636288896,2.71882,1808.5,1808.4,3.26106923]
[1746636289597,2.71882,1808.5,1808.4,2.15530923]
[1746636289798,1.10578,1808.4,1808.3,31.61359]
[1746636289993,3.58738,1808.4,1808.3,27.72085054]
[1746636290199,1.10584,1808.3,1808.2,1.55552901]
[1746636290498,2.71894,1808.3,1808.2,3.7107763]
[1746636290700,2.71894,1808.3,1808.2,2.6048863]
[1746636291002,2.71894,1808.3,1808.2,3.7107863]
[1746636291502,2.71894,1808.3,1808.2,2.6048863]
[1746636291707,2.71894,1808.3,1808.2,2.60476949]
[1746636291898,2.71894,1808.3,1808.2,3.71066866]
[1746636292093,2.71894,1808.3,1808.2,3.71064925]
[1746636293399,2.71894,1808.3,1808.2,3.71064016]
[1746636294606,2.80444,1808.4,1808.3,1.10584]
[1746636294903,4.54114,1808.4,1808.3,3.30674115]
[1746636295291,4.54114,1808.4,1808.3,3.30675687]
[1746636297100,1.10571,1808.6,1808.5,1.10566]